bitfinex/quotes_SOLUSD_20251013
["timestamp","ask_amount","ask_price","bid_price","bid_amount"]
[1760367777427,30.45441261,194.23,194.16,8.96441261]
[1760367777626,0.69,194.3,194.22,8.96441261]
[1760367777833,8.96441261,194.28,194.21,8.96441261]
[1760367778018,20.8,194.28,194.23,8.96441261]
[1760367778222,0.69,194.27,194.18,0.09]
[1760367778429,0.69,194.27,194.22,14.11313026]
[1760367778613,0.69,194.26,194.21,14.11345625]
[1760367778816,0.69,194.26,194.18,0.09]
[1760367778817,8.96441261,194.24,194.18,8.96441261]
[1760367779026,9.65441261,194.23,194.16,12.87562403]
[1760367779224,8.96441261,194.22,194.15,14.11501761]
[1760367779432,9.65441261,194.21,194.14,8.96441261]
[1760367779634,10.87647521,194.24,194.16,8.96441261]
[1760367779831,20.8,194.23,194.16,8.96441261]
[1760367780035,20.8,194.23,194.18,8.96441261]
[1760367780230,20.8,194.27,194.22,8.96441261]
[1760367780439,0.69,194.29,194.23,14.11294785]
[1760367780644,0.09406198,194.24,194.21,14.11323039]
[1760367780826,0.09406198,194.24,194.2,8.96441261]
[1760367781026,0.09406198,194.24,194.19,8.96441261]
[1760367781235,0.09406198,194.24,194.2,8.96441261]
[1760367781437,0.09406198,194.24,194.21,8.96441261]
[1760367781925,0.09406198,194.24,194.2,8.96441261]
[1760367782124,0.09406198,194.24,194.23,8.96441261]
[1760367782326,0.00406198,194.24,194.23,8.96441261]
[1760367782528,0.00406198,194.24,194.23,14.11294785]
[1760367783035,1e-08,194.25,194.23,14.11294785]
[1760367783231,1e-08,194.25,194.24,8.96441261]
[1760367783549,1e-08,194.25,194.24,79.2]
[1760367783928,1e-08,194.25,194.24,88.16441261]
[1760367784337,1e-08,194.25,194.24,93.31268279]
[1760367784647,1e-08,194.25,194.24,88.16441261]
[1760367785031,1e-08,194.25,194.24,93.31268279]
[1760367785425,0.69000001,194.25,194.24,79.2]
[1760367785648,1e-08,194.25,194.21,8.96441261]
[1760367786140,1e-08,194.25,194.19,5.14959575]
[1760367786141,1e-08,194.25,194.19,18.02358514]
[1760367786338,1e-08,194.25,194.18,88.16441261]
[1760367786339,9.65441261,194.24,194.18,88.16441261]
[1760367786546,0.69,194.24,194.19,8.96441261]
[1760367787247,1e-08,194.25,194.22,8.96441261]
[1760367787548,1e-08,194.25,194.23,8.96441261]
[1760367787743,1e-08,194.25,194.24,8.96441261]
[1760367788567,0.09390475,194.27,194.26,20.8]
[1760367788568,1e-08,194.27,194.26,20.8]
[1760367788849,0.09404315,194.29,194.28,20.8]
[1760367789026,0.09404315,194.29,194.28,29.76441261]
[1760367789432,0.09404315,194.29,194.28,20.8]
[1760367789726,0.78404315,194.29,194.26,220.66441261]
[1760367789933,0.69,194.28,194.24,84.34827018]
[1760367790339,0.09404315,194.29,194.25,8.96441261]
[1760367790542,0.09404315,194.29,194.28,8.96441261]
[1760367791130,0.09404315,194.29,194.26,18.01709049]
[1760367791326,0.09404315,194.29,194.28,8.96441261]
[1760367791750,0.11149913,194.3,194.29,20.8]
[1760367791961,0.10552591,194.32,194.3,8.96441261]
[1760367792451,0.10552591,194.32,194.3,14.111093]
[1760367793248,1e-08,194.31,194.3,14.111093]
[1760367793455,0.69,194.41,194.31,10.87647521]
[1760367793650,0.79,194.44,194.39,8.96441261]
[1760367793851,0.1,194.44,194.43,8.96441261]
[1760367794530,0.1,194.44,194.43,14.10765182]
[1760367794737,0.79,194.44,194.43,14.10765182]
[1760367794930,0.79,194.44,194.37,12.86144861]
[1760367795128,8.96441261,194.42,194.31,16.02289073]
[1760367795355,0.69,194.41,194.35,8.96441261]
[1760367795562,0.69,194.4,194.35,8.96441261]
[1760367795737,0.69,194.4,194.36,8.96441261]
[1760367795932,21.59,194.44,194.39,8.96441261]
[1760367796129,0.69,194.43,194.39,8.96441261]
[1760367796341,0.69,194.42,194.39,8.96441261]
[1760367796535,0.69,194.41,194.39,14.10866794]
[1760367796751,29.86441261,194.44,194.34,12.86363327]
[1760367796956,0.69,194.4,194.37,8.96441261]
[1760367797334,0.69,194.4,194.34,12.86363327]
[1760367797588,8.96441261,194.39,194.33,5.14588586]
[1760367797735,8.96441261,194.37,194.28,5.14721021]
[1760367797934,9.65441261,194.38,194.32,8.96441261]
[1760367798352,0.69,194.37,194.31,8.96441261]
[1760367798557,9.65441261,194.37,194.31,14.11069113]
[1760367798868,8.96441261,194.34,194.28,8.96441261]
[1760367799158,8.96441261,194.34,194.23,25.74158174]
[1760367799159,9.65441261,194.33,194.24,18.01894563]
[1760367799335,0.69,194.33,194.28,8.96441261]
[1760367799552,0.69,194.33,194.3,8.96441261]
[1760367799737,0.69,194.33,194.29,8.96441261]
[1760367800255,0.69,194.33,194.24,18.01894563]
[1760367800256,0.69,194.32,194.27,8.96441261]
[1760367800454,0.69,194.31,194.26,8.96441261]
[1760367800652,0.09339124,194.28,194.27,5.14747516]
[1760367801035,0.09339124,194.28,194.27,8.96441261]
[1760367801768,0.78339124,194.28,194.26,5.14769117]
[1760367802139,0.69,194.27,194.25,5.14796474]
[1760367802341,0.69,194.26,194.24,5.14825734]
[1760367802655,0.69,194.26,194.23,8.96441261]
[1760367803243,0.09339124,194.28,194.24,8.96441261]
[1760367803564,0.09339124,194.28,194.23,8.96441261]
[1760367804061,0.09339124,194.28,194.27,8.96441261]
[1760367804648,0.09339124,194.28,194.27,14.11188777]
[1760367805173,0.10268711,194.29,194.27,14.11188777]
[1760367805472,1e-08,194.29,194.28,29.76441261]
[1760367805765,1e-08,194.3,194.29,20.8]
[1760367805957,1e-08,194.3,194.29,29.76441261]
[1760367806553,1e-08,194.3,194.29,34.91135789]
[1760367807663,1e-08,194.3,194.29,14.11135789]
[1760367809374,1e-08,194.3,194.29,34.91135789]
[1760367809551,0.09396771,194.32,194.31,20.8]
[1760367809751,0.09396771,194.32,194.31,8.96441261]
[1760367810578,0.09396771,194.32,194.22,25.74295482]
[1760367810579,9.74838032,194.32,194.18,19.99999999]
[1760367810746,8.96441261,194.28,194.22,8.96441261]
[1760367810945,0.69,194.27,194.23,8.96441261]
[1760367811171,0.09396771,194.32,194.26,8.96441261]
[1760367811367,0.78396771,194.32,194.28,8.96441261]
[1760367811671,0.69,194.31,194.24,20.8]
[1760367811972,0.69,194.3,194.24,20.8]
[1760367812158,0.69,194.3,194.25,8.96441261]
[1760367812559,8.96441261,194.31,194.26,8.96441261]
[1760367812762,0.69,194.29,194.27,5.14747516]
[1760367812955,0.69,194.28,194.25,5.14800514]
[1760367813158,0.69,194.28,194.25,14.11241775]
[1760367813446,0.69,194.28,194.25,5.14800514]
[1760367813652,0.69,194.27,194.25,5.14800514]
[1760367813858,0.69,194.26,194.24,8.96441261]
[1760367814063,0.69,194.25,194.16,5.15039142]
[1760367814258,0.69,194.25,194.19,20.8]
[1760367814469,9.65441261,194.24,194.18,8.96441261]
[1760367814663,0.69,194.24,194.19,8.96441261]
[1760367814858,0.69,194.23,194.19,8.96441261]
[1760367815078,0.69,194.22,194.19,8.96441261]
[1760367815572,0.69,194.22,194.08,10.87647521]
[1760367815751,0.69,194.22,194.19,8.96441261]
[1760367816157,0.69,194.22,194.12,20.29647521]
[1760367816158,0.69,194.21,194.12,20.29647521]
[1760367816366,0.69,194.21,194.17,8.96441261]
[1760367816561,0.69,194.21,194.18,8.96441261]
[1760367816858,0.69,194.21,194.09,30.91349373]
[1760367816859,0.69,194.2,194.16,5.15039142]
[1760367817180,9.65441261,194.19,194.13,8.96441261]
[1760367817477,0.69,194.25,194.18,8.96441261]
[1760367817675,0.69,194.25,194.1,10.87647521]
[1760367817676,29.76441261,194.26,194.2,8.96441261]
[1760367817980,8.96441261,194.21,194.12,20.8]
[1760367818269,9.65441261,194.2,194.14,8.96441261]
[1760367818474,9.65441261,194.19,194.13,8.96441261]
[1760367818666,9.65441261,194.18,194.12,8.96441261]
[1760367819050,0.69,194.18,194.13,8.96441261]
[1760367819260,0.69,194.18,194.14,8.96441261]
[1760367819466,5.14849274,194.24,194.09,64.59411612]
[1760367819677,0.69,194.23,194.18,8.96441261]
[1760367819864,9.65441261,194.27,194.21,8.96441261]
[1760367820063,8.96441261,194.27,194.21,8.96441261]
[1760367820265,9.65441261,194.26,194.2,8.96441261]
[1760367820459,9.65441261,194.25,194.15,20.8]
[1760367820682,0.09773928,194.21,194.17,8.96441261]
[1760367820862,0.09773928,194.21,194.16,8.96441261]
[1760367821182,0.78773928,194.21,194.16,8.96441261]
[1760367821380,0.69,194.2,194.17,8.96441261]
[1760367821784,0.69,194.19,194.11,38.83101333]
[1760367821996,0.09773928,194.21,194.17,8.96441261]
[1760367822290,0.09773928,194.21,194.2,8.96441261]
[1760367822490,0.09773928,194.21,194.12,21.31514527]
[1760367822491,0.09773928,194.21,194.19,8.96441261]
[1760367822692,0.09773928,194.21,194.18,14.11409828]
[1760367823463,0.71,194.2,194.12,33.67804452]
[1760367823665,8.96441261,194.17,194.05,5.153311]
[1760367823971,8.96441261,194.17,194.11,8.96441261]
[1760367823972,0.71,194.16,194.11,8.96441261]
[1760367824162,0.71,194.15,194.11,8.96441261]
[1760367824366,49.79605698,194.21,194.14,8.96441261]
[1760367824367,20.8,194.18,194.14,8.96441261]
[1760367824777,0.71,194.17,194.15,8.96441261]
[1760367825080,0.71,194.16,194.13,8.96441261]
[1760367826168,0.80773928,194.21,194.15,8.96441261]
[1760367826364,0.80773928,194.21,194.16,8.96441261]
[1760367826583,0.80773928,194.21,194.12,18.03008447]
[1760367826584,0.80773928,194.21,194.17,8.96441261]
[1760367826882,0.80773928,194.21,194.18,8.96441261]
[1760367827067,0.71,194.2,194.11,5.15171809]
[1760367827270,8.96441261,194.18,194.11,5.15171809]
[1760367827468,9.68441261,194.17,194.11,5.15171809]
[1760367827783,9.68441261,194.17,194.11,8.96441261]
[1760367828284,8.96441261,194.16,194.08,18.03374903]
[1760367828487,0.72,194.15,194.1,8.96441261]
[1760367828978,0.72,194.14,194.1,14.11619514]
[1760367829365,8.96441261,194.11,194.04,5.15357658]
[1760367829587,0.72,194.1,194.05,8.96441261]
[1760367830368,0.72,194.1,194.06,5.15304544]
[1760367830572,20.8,194.15,194.01,0.2]
[1760367830573,9.68441261,194.09,194.01,0.2]
[1760367830804,8.96441261,194.08,194.02,5.15410782]
[1760367830963,0.72,194.09,194.03,8.96441261]
[1760367831302,30.48441261,194.12,194.06,8.96441261]
[1760367831481,27.46702237,194.12,194.06,5.94702237]
[1760367831798,5.94702237,194.11,194.06,5.94702237]
[1760367832098,0.72,194.1,194.06,11.09991399]
[1760367832389,12.87589075,194.17,194.06,11.09991399]
[1760367832390,0.09280868,194.23,194.09,5.94702237]
[1760367832578,0.09280868,194.23,194.12,5.94702237]
[1760367832579,0.72,194.18,194.12,5.94702237]
[1760367832795,0.72,194.18,194.13,5.94702237]
[1760367832966,6.66702237,194.2,194.14,5.94702237]
[1760367833173,0.72,194.2,194.15,5.94702237]
[1760367833391,6.04476165,194.21,194.13,5.94702237]
[1760367833392,6.66702237,194.19,194.13,5.94702237]
[1760367834102,0.72,194.19,194.14,5.94702237]
[1760367834279,5.94702237,194.2,194.14,11.09788286]
[1760367834480,5.94702237,194.17,194.12,5.15122127]
[1760367834680,20.8,194.2,194.1,11.09900588]
[1760367834887,0.09773928,194.21,194.17,5.94702237]
[1760367835396,0.09773928,194.21,194.18,5.94702237]
[1760367835697,0.09773928,194.21,194.17,5.94702237]
[1760367835991,5.94702237,194.2,194.14,5.94702237]
[1760367836206,20.89773928,194.21,194.16,5.94702237]
[1760367836370,0.09773928,194.21,194.2,5.94702237]
[1760367836703,0.09773928,194.21,194.14,20.8]
[1760367836864,0.09773928,194.21,194.19,5.94702237]
[1760367837063,0.09773928,194.21,194.2,5.94702237]
[1760367837269,0.09773928,194.21,194.19,5.94702237]
[1760367837496,0.09773928,194.21,194.2,5.94702237]
[1760367838275,0.09773928,194.21,194.2,11.09635295]
[1760367838896,1e-08,194.21,194.2,22.48776121]
[1760367839495,1e-08,194.22,194.21,20.8]
[1760367839675,1e-08,194.22,194.21,26.74702237]
[1760367840280,5.94702237,194.3,194.22,18.02080114]
[1760367840605,11.59647521,194.36,194.27,5.94702237]
[1760367840771,0.09478237,194.28,194.22,18.02080114]
[1760367840970,0.09478237,194.28,194.25,5.94702237]
[1760367841173,0.09478237,194.28,194.27,5.94702237]
[1760367841796,0.09525789,194.29,194.27,5.94702237]
[1760367842125,0.09735782,194.31,194.3,20.8]
[1760367842403,0.09735782,194.31,194.3,25.94668039]
[1760367842771,6.74840125,194.31,194.22,18.02080114]
[1760367843005,5.93104343,194.3,194.22,38.82080114]
[1760367843199,0.81735782,194.31,194.22,38.82080114]
[1760367843380,0.09735782,194.31,194.26,20.8]
[1760367843583,5.93104343,194.3,194.22,18.02080114]
[1760367843890,5.93104343,194.28,194.21,5.14903515]
[1760367844087,6.65104343,194.27,194.14,20.29647521]
[1760367844288,6.65104343,194.27,194.2,20.8]
[1760367844483,6.65104343,194.27,194.21,5.14906544]
[1760367844680,0.81735782,194.31,194.21,18.02172905]
[1760367844907,6.74840125,194.31,194.21,18.02172905]
[1760367845296,5.93104343,194.3,194.21,18.02172905]
[1760367845475,0.81735782,194.31,194.2,25.94921629]
[1760367845476,6.65104343,194.29,194.2,25.94921629]
[1760367845681,0.72,194.28,194.2,25.94921629]
[1760367845883,5.93104343,194.26,194.2,5.14921629]
[1760367846091,5.93104343,194.23,194.17,12.87475994]
[1760367846276,5.93104343,194.23,194.17,18.02488611]
[1760367846482,5.93104343,194.22,194.14,5.15092201]
[1760367846674,5.93104343,194.15,194.13,98.07119405]
[1760367847005,0.72,194.14,194.03,12.88460547]
[1760367847191,6.65104343,194.14,194.03,12.88460547]
[1760367847380,5.93104343,194.13,194.03,12.88460547]
[1760367847577,5.93104343,194.11,194.03,12.88460547]
[1760367847776,5.93104343,194.11,194.02,5.15410782]
[1760367847994,5.93104343,194.09,194.02,5.15410782]
[1760367848196,20.8,194.12,194.02,5.15410782]
[1760367848387,6.65104343,194.13,194.02,18.03937737]
[1760367848590,6.65104343,194.13,194.02,38.83937737]
[1760367848901,6.65104343,194.13,194.03,10.87647521]
[1760367849101,6.65104343,194.13,194.06,20.8]
[1760367849409,5.93104343,194.1,194.02,18.03937737]
[1760367849713,6.65104343,194.09,194.02,5.15410782]
[1760367850009,0.72,194.09,194.02,5.15410782]
[1760367850184,0.72,194.09,194.02,38.83937737]
[1760367850384,0.72,194.09,194.02,18.03937737]
[1760367850891,6.65104343,194.09,194.02,38.83937737]
[1760367851503,6.65104343,194.09,194.02,18.03937737]
[1760367851706,6.65104343,194.09,194.02,38.83937737]
[1760367851885,0.72,194.09,194.02,38.83937737]
[1760367852087,5.93104343,194.08,194.02,25.95410782]
[1760367852291,5.93104343,194.07,194.02,5.15410782]
[1760367852483,6.59104343,194.07,194.02,5.15410782]
[1760367852881,0.66,194.07,194.02,18.03937737]
[1760367853194,5.93104343,194.09,194.02,18.03937737]
[1760367853501,0.66,194.1,194.02,18.03937737]
[1760367853710,6.59104343,194.1,194.02,18.03937737]
[1760367853897,19.99999999,194.21,194.04,20.8]
[1760367854201,5.93104343,194.16,194.06,20.8]
[1760367854399,5.93104343,194.13,194.07,5.15277992]
[1760367854620,5.93104343,194.12,194.07,5.15277992]
[1760367854809,6.59104343,194.12,194.07,18.03472973]
[1760367855008,6.59104343,194.12,194.07,5.15277992]
[1760367855304,5.93104343,194.1,194.06,5.15302919]
[1760367855608,20.8,194.14,194.03,16.03031739]
[1760367855907,5.93104343,194.1,194.03,18.03844765]
[1760367856081,5.93104343,194.09,194.03,18.03844765]
[1760367856288,5.93104343,194.07,194.02,5.15410782]
[1760367856605,0.66,194.06,194.02,5.15410782]
[1760367857393,6.59104343,194.06,194.02,5.15410782]
[1760367857608,21.46,194.09,194.02,5.15410782]
[1760367857812,6.59104343,194.09,194.02,5.15410782]
[1760367857984,5.93104343,194.28,194.02,38.83937737]
[1760367858312,5.93104343,194.11,194.02,38.83937737]
[1760367858818,6.59104343,194.11,194.02,38.83937737]
[1760367859024,19.99999999,194.22,194.02,38.83937737]
[1760367859025,21.46,194.14,194.03,10.87647521]
[1760367859195,5.93104343,194.1,194.02,64.60991648]
[1760367859994,5.93104343,194.09,194.02,20.8]
[1760367860201,5.93104343,194.09,194.02,38.83936466]
[1760367860589,6.59104343,194.08,194.02,18.03936466]
[1760367860790,0.0982545,194.03,194.02,18.03936466]
[1760367861214,0.11248339,194.06,194.04,20.8]
[1760367862290,0.11248339,194.06,194.02,18.03936466]
[1760367862795,0.77248339,194.06,194.01,0.2]
[1760367862988,6.70352682,194.06,194.01,0.2]
[1760367863189,0.77248339,194.06,194.01,5.35416156]
[1760367863990,5.93104343,194.05,194.01,5.35416156]
[1760367864197,6.59104343,194.05,194.01,5.35416156]
[1760367864990,0.66,194.04,194.01,0.2]
[1760367865303,0.11248339,194.06,194.02,5.15410782]
[1760367865510,0.11248339,194.06,194.02,18.03937737]
[1760367866808,0.11248339,194.06,194.03,10.87647521]
[1760367866992,0.11248339,194.06,194.05,31.67647521]
[1760367867806,0.11248339,194.06,194.05,20.8]
[1760367868010,0.11248339,194.06,194.03,20.8]
[1760367868196,0.11248339,194.06,194.02,5.15410782]
[1760367868392,6.59104343,194.05,194.02,5.15410782]
[1760367868598,6.59104343,194.04,194.01,5.35433663]
[1760367868801,0.66,194.03,194.01,5.35433663]
[1760367869113,6.59104343,194.02,194.01,0.2]
[1760367869496,5.93104343,194.04,194.01,5.35437348]
[1760367869697,0.66,194.03,194.01,5.35437348]
[1760367870315,0.11248339,194.06,194.01,18.24030719]
[1760367870514,0.77248339,194.06,194.01,18.24030719]
[1760367870714,6.03978934,194.08,194.01,5.35437348]
[1760367870715,5.93104343,194.08,194.01,5.35437348]
[1760367871017,5.93104343,194.16,194.01,18.24030719]
[1760367871217,5.93104343,194.07,194.01,18.24030719]
[1760367871802,5.93104343,194.12,194.02,32.33647521]
[1760367872004,5.93104343,194.14,194.05,20.8]
[1760367872323,5.93104343,194.15,194.05,21.46]
[1760367872500,5.93104343,194.16,194.08,18.03380048]
[1760367872696,5.93104343,194.13,194.08,18.03380048]
[1760367872917,0.66,194.12,194.08,18.03380048]
[1760367873118,5.93104343,194.1,194.06,5.15304544]
[1760367873309,6.59104343,194.09,194.02,20.8]
[1760367873613,5.93104343,194.08,194.02,25.95410782]
[1760367873921,5.93104343,194.06,194.02,5.15410782]
[1760367874519,5.93104343,194.07,194.02,18.03937737]
[1760367875016,6.59104343,194.07,194.02,18.03937737]
[1760367875611,5.93104343,194.06,194.02,5.15410782]
[1760367876015,6.59104343,194.06,194.02,5.15410782]
[1760367876413,5.93104343,194.07,194.02,5.15410782]
[1760367876602,6.59104343,194.07,194.02,5.15410782]
[1760367876936,20.8,194.12,194.03,0.66]
[1760367876937,0.66,194.12,194.03,0.66]
[1760367877226,0.66,194.2,194.08,10.87647521]
[1760367877527,5.93104343,194.18,194.11,20.8]
[1760367877698,0.66,194.26,194.15,20.8]
[1760367877899,0.66,194.26,194.16,11.53647521]
[1760367878119,0.66,194.33,194.18,31.67647521]
[1760367878438,0.66,194.33,194.05,25.23811813]
[1760367878439,6.59104343,194.33,194.22,10.87647521]
[1760367878643,47.78737283,194.43,194.25,20.8]
[1760367878805,0.2,194.45,194.3,20.8]
[1760367878806,0.66,194.37,194.3,20.8]
[1760367879139,0.66,194.4,194.3,20.8]
[1760367879305,5.93104343,194.42,194.32,10.87647521]
[1760367879655,6.13104343,194.45,194.34,10.87647521]
[1760367879828,6.03104343,194.44,194.34,10.87647521]
[1760367880009,5.93104343,194.43,194.34,10.87647521]
[1760367880407,0.76,194.44,194.3,20.8]
[1760367880408,5.93104343,194.39,194.3,20.8]
[1760367880731,0.10855073,194.35,194.31,10.87647521]
[1760367880914,0.10855073,194.35,194.32,18.01152736]
[1760367881226,0.10855073,194.35,194.33,11.39106379]
[1760367881401,0.10855073,194.35,194.33,12.05106379]
[1760367881602,0.10855073,194.35,194.34,0.66]
[1760367882550,0.09968913,194.36,194.35,20.8]
[1760367882731,0.11281033,194.37,194.36,10.87647521]
[1760367883023,0.11281033,194.37,194.36,16.68156679]
[1760367883836,0.10350844,194.38,194.36,16.68156679]
[1760367884013,0.09800504,194.43,194.4,10.87647521]
[1760367884329,0.1,194.5,194.43,31.67647521]
[1760367884629,0.1,194.5,194.44,10.87647521]
[1760367884801,0.1,194.5,194.44,16.4794499]
[1760367885004,0.1,194.5,194.48,10.87647521]
[1760367885523,0.1,194.5,194.48,11.33647521]
[1760367885727,0.1,194.54,194.49,11.33647521]
[1760367885916,0.1,194.64,194.54,10.87647521]
[1760367886119,0.1,194.64,194.58,10.87647521]
[1760367886828,0.1,194.64,194.59,5.13901022]
[1760367887225,0.77,194.64,194.59,5.13901022]
[1760367887425,0.1,194.64,194.59,5.13901022]
[1760367887932,0.77,194.64,194.58,10.87647521]
[1760367888522,5.93104343,194.6,194.51,0.26]
[1760367888711,5.93104343,194.6,194.36,25.72545791]
[1760367888712,5.93104343,194.58,194.5,10.87647521]
[1760367888915,5.93104343,194.58,194.41,4.20439262]
[1760367888916,0.67,194.62,194.54,16.01671063]
[1760367889123,6.60104343,194.62,194.55,10.87647521]
[1760367889410,20.9,194.64,194.55,10.87647521]
[1760367889411,5.93104343,194.63,194.55,10.87647521]
[1760367889713,0.1,194.64,194.58,31.67647521]
[1760367890112,5.93104343,194.63,194.58,20.8]
[1760367890313,5.93104343,194.63,194.55,10.87647521]
[1760367890314,6.60104343,194.62,194.55,31.67647521]
[1760367890523,6.60104343,194.62,194.55,20.8]
[1760367890721,5.93104343,194.62,194.55,20.8]
[1760367891024,0.1,194.64,194.55,25.93995557]
[1760367891226,0.1,194.64,194.56,11.13647521]
[1760367891430,0.1,194.64,194.59,20.8]
[1760367891821,0.1,194.64,194.6,10.87647521]
[1760367892837,0.77,194.64,194.6,5.13874614]
[1760367893128,6.70104343,194.64,194.59,25.93896984]
[1760367893332,0.67,194.63,194.57,5.1394131]
[1760367893536,9.59470004,194.63,194.57,5.1394131]
[1760367894320,0.1,194.64,194.57,17.98825927]
[1760367894609,0.1,194.64,194.58,10.87647521]
[1760367895011,0.1,194.64,194.6,10.87647521]
[1760367896031,0.77,194.64,194.59,5.13901022]
[1760367896537,0.77,194.64,194.56,20.8]
[1760367896538,0.1,194.64,194.56,25.93966885]
[1760367896713,9.59470004,194.63,194.56,25.93966885]
[1760367896914,8.92470004,194.62,194.56,25.93966885]
[1760367897218,8.92470004,194.59,194.53,5.14053364]
[1760367897414,5.13795937,194.63,194.47,25.97005821]
[1760367897415,8.92470004,194.57,194.5,5.14138817]
[1760367897614,8.92470004,194.54,194.48,5.14185584]
[1760367897807,0.67,194.56,194.48,5.14185584]
[1760367898007,8.92470004,194.55,194.48,17.9966481]
[1760367898406,0.67,194.59,194.49,10.87647521]
[1760367898613,9.59470004,194.58,194.49,10.87647521]
[1760367898825,8.92470004,194.57,194.48,5.40185584]
[1760367899021,8.92470004,194.56,194.49,10.87647521]
[1760367899222,8.92470004,194.55,194.48,17.9966481]
[1760367899811,8.92470004,194.54,194.46,16.01870666]
[1760367900146,8.92470004,194.54,194.46,5.14223145]
[1760367900321,0.67,194.53,194.46,5.14223145]
[1760367900637,0.67,194.59,194.51,10.87647521]
[1760367900936,0.11300676,194.52,194.51,16.01759905]
[1760367901236,0.78300676,194.52,194.45,31.67647521]
[1760367901433,0.11300676,194.52,194.45,31.67647521]
[1760367901635,0.11300676,194.52,194.45,31.93647521]
[1760367902020,0.11300676,194.52,194.51,10.87647521]
[1760367902425,0.11300676,194.52,194.51,11.13647521]
[1760367902635,0.10217458,194.55,194.53,20.8]
[1760367902832,0.10268796,194.56,194.53,31.67647521]
[1760367903018,0.10268796,194.56,194.55,16.01654203]
[1760367903338,0.10268796,194.56,194.55,36.81654203]
[1760367903841,0.10268796,194.56,194.55,20.8]
[1760367904821,0.10268796,194.56,194.55,10.87647521]
[1760367905033,0.10268796,194.56,194.55,16.17654203]
[1760367905417,0.10268796,194.56,194.55,31.67647521]
[1760367906928,0.10268796,194.56,194.55,5.30006682]
[1760367907236,0.1,194.64,194.56,10.87647521]
[1760367907443,0.1,194.64,194.56,20.29647521]
[1760367907638,0.1,194.64,194.56,10.87647521]
[1760367907940,0.1,194.64,194.58,10.87647521]
[1760367908243,0.1,194.64,194.58,20.27647521]
[1760367908739,1e-08,194.64,194.59,9.56]
[1760367908946,1e-08,194.64,194.63,5.13795406]
[1760367909117,1e-08,194.64,194.63,25.41442927]
[1760367909320,1e-08,194.64,194.63,16.01442927]
[1760367909633,1e-08,194.64,194.63,5.13795406]
[1760367911041,1e-08,194.64,194.59,10.87647521]
[1760367911639,1e-08,194.64,194.59,11.03647521]
[1760367911828,1e-08,194.64,194.63,10.87647521]
[1760367912344,1e-08,194.64,194.63,11.03647521]
[1760367912544,1e-08,194.64,194.63,20.43647521]
[1760367912734,1e-08,194.64,194.63,11.03647521]
[1760367913043,1e-08,194.64,194.63,16.17442927]
[1760367913341,1e-08,194.64,194.63,16.01442927]
[1760367913545,1e-08,194.64,194.63,25.57442927]
[1760367914125,1e-08,194.64,194.63,16.17442927]
[1760367915239,1e-08,194.64,194.63,16.01442927]
[1760367915432,1e-08,194.64,194.63,25.57442927]
[1760367915626,1e-08,194.64,194.63,16.17442927]
[1760367915829,1e-08,194.64,194.63,16.01442927]
[1760367916038,1e-08,194.64,194.63,5.13795406]
[1760367916241,1e-08,194.64,194.61,10.87647521]
[1760367916433,1e-08,194.64,194.62,0.16]
[1760367916633,1e-08,194.64,194.63,9.4]
[1760367916833,1e-08,194.64,194.62,0.16]
[1760367917038,1e-08,194.64,194.63,25.41442927]
[1760367917247,1e-08,194.64,194.63,16.01442927]
[1760367917437,1e-08,194.64,194.63,25.41442927]
[1760367917634,1e-08,194.64,194.63,16.01442927]
[1760367917823,1e-08,194.64,194.63,16.17442927]
[1760367918023,1e-08,194.64,194.63,25.57442927]
[1760367918231,1e-08,194.64,194.63,5.13795406]
[1760367919041,1e-08,194.64,194.62,10.87647521]
[1760367919350,1e-08,194.64,194.62,20.43647521]
[1760367919547,1e-08,194.64,194.63,32.35027061]
[1760367919745,1e-08,194.64,194.63,41.75027061]
[1760367919937,0.72,194.73,194.64,10.87647521]
[1760367920144,0.1,194.84,194.63,21.4737954]
[1760367920145,0.72,194.72,194.66,10.87647521]
[1760367920560,0.72,194.72,194.64,10.87647521]
[1760367920736,0.10024046,194.67,194.66,10.87647521]
[1760367921058,0.82024046,194.67,194.64,12.84422523]
[1760367921262,0.72,194.66,194.63,5.13795406]
[1760367921460,0.10024046,194.67,194.63,27.38283922]
[1760367921639,0.10024046,194.67,194.64,10.87647521]
[1760367922144,0.10024046,194.67,194.65,9.4]
[1760367922335,0.10024046,194.67,194.64,20.27647521]
[1760367922532,0.72,194.66,194.64,10.87647521]